Workbook

Sheet Conso
A2: La question ici est de savoir combien de temps on doit faire tourner le moteur diesel pour équilibrer
A4: 1 | B4: Paramètres de votre pack batteries
C5: Voltage | D5: Capacité théorique | E5: Nbre de packs | H5: Energie utilisable
C6: (volts) | D6: (Ah) | H6: (en watts heure) | J6: =0.6*0.72*0.95 -> 0.4104
B7: Batteries plomb | C7: 12 | D7: 100 | E7: 5 | H7: =C7*D7*E7*0.6*0.75*0.95 -> 2565 | I7: 1 | J7: L'énergie utilisable tient compte des déchéances batterie
B8: Batteries lithium | C8: 12 | D8: 100 | E8: 0 | H8: =D8*E8*0.8*0.925*C8 -> 0 | I8: =0.6*0.75*0.95 -> 0.4275
B9: Total | D9: =IF(E8<>0,SUM(D7:D8),D7) -> 100 | E9: =SUM(E7:E8) -> 5 | H9: =SUM(H7:H8) -> 2565
B11: Adéquation du parc à la consommation | D11: =IF(H9>F104,"Parc équilibré","Parc déséquilibré") -> Parc équilibré | I11: 2 | J11: Compte tenu de 1) la simple comparaison de la conso (8) avec la production (7) permet de savoir si le parc est équilibré ou non
A14: 2 | B14: Paramètres de votre production d'énergie
A15: 2.1 | B15: Alternateur | H15: Puissance délivrée
B16: Vitesse de rotation moteur (en tr/min) | C16: 1200 | D16: 1500 | E16: 1800 | F16: 2000 | G16: 2200 | H16: (en watts)
B17: I1 Intensité (A) | E17: 40 | H17: =SUM(C17:G17)*12 -> 480
B18: I2 Intensité (A) | E18: 40 | H18: =SUM(C18:G18)*12 -> 480
C19: Indiquer une seule valeur d'intensité par producteur: celle qui correspond au régime de rotation choisi
A21: 2.2 | B21: Pile à combustible | H21: Puissance délivrée
C22: Qté | D22: Puissance | H22: (en watts)
D23: (en watts)
C24: 0 | D24: 40 | H24: =C24*D24 -> 0
A26: 2.3 | B26: Panneaux solaires | C26: Surface | D26: Puissance au m2 | E26: Rendement | H26: Puissance délivrée
C27: (en m2) | D27: (en watts) | H27: (en watts)
C28: =3*1+1*2 -> 5 | D28: 160 | E28: 0.42 | H28: =C28*D28*E28 -> 336 | I28: 3 | J28: Le rendement de 0,5 est arbitraire en prend en considération
A30: 2.4 | B30: Eolienne | H30: Puissance délivrée
B31: Vitesse du Vent (en kts) | C31: 10 | D31: 15 | E31: 20 | F31: 25 | G31: 30 | H31: (en watts)
A32: 1 | B32: Aerogen4 | C32: 12 | D32: 32 | E32: 52 | F32: 78 | G32: 102 | H32: =IF(B$38=1,(C32*0.7+D32*0.2+E32*0.05+F32*0.04+G32*0.01)*0.7,0) -> 15.078 | I32: 4 | J32: La puissance délivrée tient compte d'une distribution statistique des vents
A33: 2 | B33: aerogen6 | C33: 30 | D33: 90 | E33: 120 | F33: 180 | G33: 240 | H33: =IF(B$38=2,(C33*0.8+D33*0.1+E33*0.05+F33*0.04+G33*0.01)*0.7,0) -> 0
A34: 3 | B34: Air breeze marine | C34: 20 | D34: 95 | E34: 172 | F34: 200 | G34: 200 | H34: =IF(B$38=3,(C34*0.8+D34*0.1+E34*0.05+F34*0.04+G34*0.01)*0.7,0) -> 0
A35: 4 | B35: Rutland914 | C35: 12 | D35: 54 | E35: 100 | F35: 168 | G35: 186 | H35: =IF(B$38=4,(C35*0.8+D35*0.1+E35*0.05+F35*0.04+G35*0.01)*0.7,0) -> 0
A36: 5 | B36: S300 | C36: 40 | D36: 80 | E36: 150 | F36: 220 | G36: 300 | H36: =IF(B$38=5,(C36*0.8+D36*0.1+E36*0.05+F36*0.04+G36*0.01)*0.7,0) -> 0
A37: 6 | B37: Superwind 350 | C37: 12 | D37: 70 | E37: 180 | F37: 350 | G37: 250 | H37: =IF(B$38=6,(C37*0.8+D37*0.1+E37*0.05+F37*0.04+G37*0.01)*0.7,0) -> 0
B38: 1
A39: 2.5 | B39: Hydrogénérateur | H39: Puissance délivrée
B40: vitesse du navire (en kts) | C40: 3 | D40: 5 | E40: 6 | F40: 7 | G40: 8 | H40: (en watts)
A41: 1 | B41: Intensité (A) | C41: 0.6 | D41: 3 | E41: 5 | F41: 6 | G41: 7 | H41: =IF(B43=1,(C41*0.05+D41*0.15+E41*0.7+F41*0.1+G41*0)*12,0) -> 0 | I41: 5 | J41: La puissance délivrée tient compte d'une distribution statistique de la vitesse du voilier
A42: 2 | B42: watt and sea | C42: 1.5 | D42: 5 | E42: 10 | F42: 12 | G42: 16 | H42: =IF(B43=2,(C42*0.15+D42*0.15+E42*0.6+F42*0.1+G42*0)*12,0) -> 0
B43: 0
A46: 3 | B46: Production / Consommation
C47: Puissance | D47: Intensité | E47: Tps Utilisation | F47: Production / Conso | G47: Production / Conso
E48: (en 24 heures) | F48: (sur 24 heures) | G48: (sur 24 heures)
C49: (Watts) | D49: (A) | E49: (en dixième d'Heures) | F49: Wh | G49: Ah
H50: watt / 100W
B51: Panneaux solaires | C51: =H28 -> 336 | D51: =C51/12 -> 28 | E51: 6 | F51: =C51*E51 -> 2016 | G51: =D51*E51 -> 168 | H51: =G51/C28 -> 33.6
B52: Pile à combustible | C52: =H24 -> 0 | D52: =C52/12 -> 0 | E52: 12 | F52: =C52*E52 -> 0 | G52: =D52*E52 -> 0 | H52: a 15 kts
B53: Eolienne | C53: =SUM(H32:H37) -> 15.078 | D53: =C53/12 -> 1.2565 | E53: 24 | F53: =C53*E53 -> 361.872 | G53: =D53*E53 -> 30.156 | H53: =80/12*24 -> 160
B54: Hydrogénérateur | C54: =SUM(H41:H42) -> 0 | D54: =C54/12 -> 0 | E54: 24 | F54: =C54*E54 -> 0 | G54: =D54*E54 -> 0
B55: Alternateur moteur | C55: =H17+15 -> 495 | D55: =C55/12 -> 41.25 | E55: =IF((G106)>0,"Bilan équilibré",IF((D11="Parc équilibré"),INT(ABS(G106/D55)+1),INT(ABS(G106/D55)+3))) -> Bilan équilibré | I55: 6 | J55: Le temps de mise en marche du moteur tient compte d'un temps minimum nécessaire de recharge des batteries et tient compte du fait que la parc de batterie (2) équilibre ou non la consommation (8)
B56: Production totale hors moteur | F56: =SUM(F51:F54) -> 2377.872 | G56: =SUM(G51:G54) -> 198.156 | I56: 7
B57: Eclairage cabine
B58: Eclairage cabine avant plafonnier | C58: 3 | D58: 3 | E58: 1 | F58: =C58*E58 -> 3 | G58: =D58*E58 -> 3 | H58: =G58/G$104 -> 0.01584256016
B59: Eclairage cabine avant lecteur | C59: 3 | D59: =C59/12 -> 0.25 | E59: 1 | F59: =C59*E59 -> 3 | G59: =D59*E59 -> 0.25 | H59: =G59/G$104 -> 0.001320213346
B60: Eclairage salle d'eau plafonnier | C60: 3 | D60: =C60/12 -> 0.25 | E60: 1 | F60: =C60*E60 -> 3 | G60: =D60*E60 -> 0.25 | H60: =G60/G$104 -> 0.001320213346
B61: Eclairage salle d'eau tube | C61: 3 | D61: =C61/12 -> 0.25 | E61: 1 | F61: =C61*E61 -> 3 | G61: =D61*E61 -> 0.25 | H61: =G61/G$104 -> 0.001320213346
B63: Eclairage carré
B64: Plafonniers carré | C64: 3 | D64: =C64/12 -> 0.25 | E64: 2 | F64: =C64*E64 -> 6 | G64: =D64*E64 -> 0.5 | H64: =G64/G$104 -> 0.002640426693
B65: Plafonnier cuisine | C65: 3 | D65: =C65/12 -> 0.25 | E65: 2 | F65: =C65*E65 -> 6 | G65: =D65*E65 -> 0.5 | H65: =G65/G$104 -> 0.002640426693
B66: Plafonnier table à carte | C66: 3 | D66: =C66/12 -> 0.25 | E66: 4 | F66: =C66*E66 -> 12 | G66: =D66*E66 -> 1 | H66: =G66/G$104 -> 0.005280853386
B67: Lecteur de carte | C67: 3 | D67: =C67/12 -> 0.25 | E67: 1 | F67: =C67*E67 -> 3 | G67: =D67*E67 -> 0.25 | H67: =G67/G$104 -> 0.001320213346
C68: 3 | D68: =C68/12 -> 0.25
B69: Cabine arrière tribord
B70: Plafonnier | C70: 3 | D70: =C70/12 -> 0.25 | E70: 1 | F70: =C70*E70 -> 3 | G70: =D70*E70 -> 0.25 | H70: =G70/G$104 -> 0.001320213346
B71: Lecteur | C71: 3 | D71: =C71/12 -> 0.25 | E71: 1 | F71: =C71*E71 -> 3 | G71: =D71*E71 -> 0.25 | H71: =G71/G$104 -> 0.001320213346
B73: Cabine arrière babord
B74: Plafonnier | C74: 3 | D74: =C74/12 -> 0.25 | E74: 1 | F74: =C74*E74 -> 3 | G74: =D74*E74 -> 0.25 | H74: =G74/G$104 -> 0.001320213346
B75: Lecteur | C75: 3 | D75: =C75/12 -> 0.25 | E75: 1 | F75: =C75*E75 -> 3 | G75: =D75*E75 -> 0.25 | H75: =G75/G$104 -> 0.001320213346
B76: Sous Total Eclairage | C76: =SUM(C58:C75) -> 39 | D76: =SUM(D58:D75) -> 6 | F76: =SUM(F58:F75) -> 51 | G76: =SUM(G58:G75) -> 7 | H76: =SUM(H58:H75) -> 0.0369659737 | T76: Eclairage | U76: =H76 -> 0.0369659737
B77: Feux de navigation | T77: Feux | U77: =H83 -> 0.02524247918
B78: Tricolore | C78: 2.28 | D78: =C78/12 -> 0.19 | E78: 12 | F78: =C78*E78 -> 27.36 | G78: =D78*E78 -> 2.28 | H78: =G78/G$104 -> 0.01204034572 | T78: Confort | U78: =H90 -> 0.2275167667
T79: Com | U79: =H94 -> 0.03802214438
B80: Feu de pont | C80: 50 | D80: =C80/12 -> 4.166666667 | E80: 0.6 | F80: =C80*E80 -> 30 | G80: =D80*E80 -> 2.5 | H80: =G80/G$104 -> 0.01320213346 | T80: Nav | U80: =H102 -> 0.672252636
B82: Feu de mouillage | C82: 2.5 | D82: =C82/12 -> 0.2083333333 | E82: 0 | F82: =C82*E82 -> 0 | G82: =D82*E82 -> 0 | H82: =G82/G$104 -> 0
B83: Sous Total Feux | F83: =SUM(F78:F82) -> 57.36 | G83: =SUM(G78:G82) -> 4.78 | H83: =SUM(H78:H82) -> 0.02524247918
B84: Confort
B85: Pompe évacuation salle d'eau | C85: 120 | D85: =C85/12 -> 10 | E85: 0.1 | F85: =C85*E85 -> 12 | G85: =D85*E85 -> 1 | H85: =G85/G$104 -> 0.005280853386
B86: Réfrigérateur | C86: 40 | D86: =C86/12 -> 3.333333333 | E86: 12 | F86: =C86*E86 -> 480 | G86: =D86*E86 -> 40 | H86: =G86/G$104 -> 0.2112341354
B87: Auto radio | C87: 15 | D87: =C87/12 -> 1.25 | E87: 0 | F87: =C87*E87 -> 0 | G87: =D87*E87 -> 0 | H87: =G87/G$104 -> 0
B88: Pompe de pression eau douce | C88: 100 | D88: =C88/12 -> 8.333333333 | E88: 0.25 | F88: =C88*E88 -> 25 | G88: =D88*E88 -> 2.083333333 | H88: =G88/G$104 -> 0.01100177789
B89: Désalinisateur | C89: =38*12 -> 456 | D89: =C89/12 -> 38 | E89: 0 | F89: =C89*E89 -> 0 | G89: =D89*E89 -> 0 | H89: =G89/G$104 -> 0
B90: Sous Total Confort | F90: =SUM(F85:F89) -> 517 | G90: =SUM(G85:G89) -> 43.08333333 | H90: =SUM(H85:H89) -> 0.2275167667
B91: Communications
B92: VHF (mode veille) | C92: 3.6 | D92: =C92/12 -> 0.3 | E92: 24 | F92: =C92*E92 -> 86.4 | G92: =D92*E92 -> 7.2 | H92: =G92/G$104 -> 0.03802214438
B93: Iridium (charge)
B94: Sous Total Communications | F94: =SUM(F92:F93) -> 86.4 | G94: =SUM(G92:G93) -> 7.2 | H94: =SUM(H92:H93) -> 0.03802214438
B95: Navigation
B96: Radar | C96: =(8*0.8+38*0.2)*1+(40*1)*0 -> 14 | D96: =C96/12 -> 1.166666667 | E96: 12 | F96: =C96*E96 -> 168 | G96: =D96*E96 -> 14 | H96: =G96/G$104 -> 0.0739319474
B97: Plotter | C97: 10 | D97: 0.8333333333 | E97: 0 | F97: 0 | G97: 0 | H97: 0
B98: Electronique divers AIS, Multiplex | C98: 5 | D98: 0.4166666667 | E98: 24 | F98: 120 | G98: 10 | H98: 0.05280853386
B99: Cartographie PC | C99: 17 | D99: 1.416666667 | E99: 6 | F99: 102 | G99: 8.5 | H99: 0.04488725378
B100: Instruments de nav | C100: 2.4 | D100: 0.2 | E100: 24 | F100: 57.6 | G100: 4.8 | H100: 0.02534809625
B101: Pilote automatique | C101: 45 | D101: 3.75 | E101: 24 | F101: 1080 | G101: 90 | H101: 0.4752768047
B102: Sous Total Navigation | D102: =SUM(D96:D101) -> 7.783333333 | F102: =SUM(F97:F101) -> 1359.6 | G102: =SUM(G96:G101) -> 127.3 | H102: =SUM(H96:H101) -> 0.672252636
A104: 4 | B104: Consommation totale | F104: =SUM(F58:F101)-F94-F90-F83-F76 -> 2239.36 | G104: =SUM(G58:G101)-G94-G90-G83-G76 -> 189.3633333
A106: 5 | B106: Bilan électrique | F106: =F56-F104 -> 138.512 | G106: =G56-G104 -> 8.792666667 | H106: be v3
F108: =SUM(F58:F101)-F94-F90-F83-F76-F102 -> 879.76 | G108: =SUM(G58:G101)-G94-G90-G83-G76-G102 -> 62.06333333
